bitfinex-derivatives/quotes_ETHF0:USTF0_20250629
["timestamp","ask_amount","ask_price","bid_price","bid_amount"]
[1751188096885,1.4155,2440.9,2440.8,2.86622]
[1751188097086,4.37085599,2440.9,2440.8,2.86622]
[1751188098690,1.4155,2440.9,2440.8,2.86622]
[1751188098987,15.71385122,2441.0,2440.9,0.81909]
[1751188101191,16.85907185,2441.0,2440.9,0.81909]
[1751188102488,6.80851586,2441.0,2440.9,2.86619]
[1751188102691,4.35302063,2441.0,2440.9,2.86619]
[1751188107293,1.14522063,2441.0,2440.9,2.86619]
[1751188108490,1.14522063,2441.0,2440.9,3.53659]
[1751188110797,6.406,2441.2,2441.1,0.81902]
[1751188110997,6.406,2441.2,2441.1,2.86612]
[1751188121401,16.46335122,2441.4,2441.3,0.81895]
[1751188122609,15.57511703,2441.4,2441.3,0.81895]
[1751188123000,16.70999889,2441.4,2441.3,0.81895]
[1751188123308,9.60400366,2441.4,2441.3,0.81895]
[1751188123704,9.60400366,2441.4,2441.3,2.86605]
[1751188124599,7.53688186,2441.4,2441.3,2.86605]
[1751188128916,1.13488186,2441.4,2441.3,2.86605]
[1751188146639,3.20182254,2441.4,2441.3,2.86605]
[1751188147735,28.09182254,2441.4,2440.7,5.25561]
[1751188148040,6.43588186,2441.3,2441.2,0.81899]
[1751188148243,8.50282254,2441.3,2441.2,0.81899]
[1751188148443,8.50282254,2441.3,2441.1,0.819]
[1751188148739,33.86758186,2441.2,2441.1,0.819]
[1751188154139,1.13488186,2441.2,2441.1,0.819]
[1751188154345,26.02588186,2441.2,2441.1,2.8661]
[1751188154743,26.02588186,2441.2,2441.1,3.5848]
[1751188160449,1.13488186,2441.2,2441.1,3.5848]
[1751188160750,26.02588186,2441.2,2441.1,3.5848]
[1751188160950,26.02588186,2441.2,2441.1,4.2471]
[1751188165458,26.02588186,2441.2,2441.1,5.651]
[1751188166455,26.95694068,2441.3,2441.2,0.81899]
[1751188166652,26.95694068,2441.3,2441.2,2.86609]
[1751188169959,24.89,2441.3,2441.2,2.86609]
[1751188173757,26.95494068,2441.4,2441.3,0.81896]
[1751188173962,26.95494068,2441.4,2441.3,2.86606]
[1751188178468,28.07573822,2441.4,2441.3,2.86606]
[1751188182672,28.07573822,2441.4,2441.3,0.81896]
[1751188182968,28.07573822,2441.4,2441.3,2.86606]
[1751188184170,1.12079754,2441.4,2441.3,2.86606]
[1751188184373,28.07373822,2441.4,2441.3,2.86606]
[1751188192180,28.07173822,2441.4,2441.3,2.86606]
[1751188194883,28.07173822,2441.4,2441.3,0.81896]
[1751188195083,30.14863822,2441.4,2441.3,0.81896]
[1751188196383,30.96755822,2441.4,2441.3,0.81896]
[1751188198091,6.08355822,2441.4,2441.3,0.81896]
[1751188198288,37.36055822,2441.4,2441.3,0.81896]
[1751188198478,37.36055822,2441.4,2441.3,0.81895]
[1751188199887,0.81897,2441.3,2441.2,0.81896]
[1751188200080,3.94916754,2441.3,2441.2,0.81896]
[1751188205489,3.13019754,2441.3,2441.2,0.81896]
[1751188205793,32.39579754,2441.3,2441.2,2.86606]
[1751188206485,32.39579754,2441.3,2441.2,3.53086]
[1751188206686,32.39579754,2441.3,2441.2,4.95066]
[1751188207192,1.12079754,2441.3,2441.2,4.95066]
[1751188207391,26.00079754,2441.3,2441.2,4.95066]
[1751188214699,26.00079754,2441.3,2441.2,3.53086]
[1751188217501,1.12079754,2441.3,2441.2,3.53086]
[1751188219892,1.12079754,2441.3,2441.2,6.96690068]
[1751188223406,0.82136107,2441.3,2441.2,6.96690068]
[1751188224001,0.82136107,2441.3,2441.2,11.96690068]
[1751188224408,0.82136107,2441.3,2441.2,6.96690068]
[1751188224911,0.82136107,2441.3,2441.2,11.96690068]
[1751188226614,33.32894068,2441.8,2441.7,0.81882]
[1751188228914,33.32694068,2441.8,2441.7,0.81882]
[1751188230011,34.71734068,2441.8,2441.7,0.81882]
[1751188230406,32.6504,2441.8,2441.7,0.81882]
[1751188230713,34.71734068,2441.8,2441.7,0.81882]
[1751188235421,35.82024891,2441.8,2441.7,0.81882]
[1751188236728,35.82024891,2441.8,2441.7,2.86592]
[1751188237120,10.94924891,2441.8,2441.7,2.86592]
[1751188237427,35.81524891,2441.8,2441.7,2.86592]
[1751188239116,34.42484891,2441.8,2441.7,2.86592]
[1751188246121,1.10290823,2441.8,2441.7,2.86592]
[1751188246521,1.10290823,2441.8,2441.7,4.26342]
[1751188251925,1.10290823,2441.8,2441.7,2.86592]
[1751188254135,3.16984891,2441.8,2441.7,2.86592]
[1751188254629,1.10290823,2441.8,2441.7,0.81882]
[1751188254831,2.55630823,2441.8,2441.7,0.81882]
[1751188263745,3.37509823,2441.8,2441.7,0.81882]
[1751188264341,2.55630823,2441.8,2441.7,0.81882]
[1751188264542,1.10290823,2441.8,2441.7,0.81882]
[1751188266245,1.10290823,2441.8,2441.7,2.86592]
[1751188271253,1.10290823,2441.8,2441.7,43.66592]
[1751188272654,1.10290823,2441.8,2441.7,41.61882]
[1751188272842,1.10290823,2441.8,2441.7,43.66592]
[1751188274657,1.10290823,2441.8,2441.7,45.7319694]
[1751188279161,1.10290823,2441.8,2441.7,43.66592]
[1751188286765,1.10290823,2441.8,2441.7,45.05302]
[1751188288466,1.10290823,2441.8,2441.7,43.66592]
[1751188291869,3.16895763,2441.8,2441.7,43.66592]
[1751188296970,3.16895763,2441.8,2441.7,41.61882]
[1751188308369,1.10290823,2441.8,2441.7,41.61882]
[1751188308570,2.0660494,2441.9,2441.8,0.81879]
[1751188308869,3.16116801,2441.9,2441.8,0.81879]
[1751188309175,3.16116801,2441.9,2441.8,41.61879]
[1751188320986,1.09511861,2441.9,2441.8,41.61879]
[1751188327091,1.09511861,2441.9,2441.8,43.66589]
[1751188327293,10.88554463,2442.1,2442.0,0.81872]
[1751188327593,11.97921734,2442.1,2442.0,0.81872]
[1751188333493,9.52372211,2442.1,2442.0,0.81872]
[1751188339696,10.34241211,2442.1,2442.0,0.81872]
[1751188339905,12.44591211,2442.1,2442.0,0.81872]
[1751188340400,11.62722211,2442.1,2442.0,0.81872]
[1751188340697,12.44591211,2442.1,2442.0,0.81872]
[1751188341303,11.62722211,2442.1,2442.0,0.81872]
[1751188341896,10.94112211,2442.1,2442.0,0.81872]
[1751188344003,9.52372211,2442.1,2442.0,0.81872]
[1751188353113,1.09367271,2442.1,2442.0,2.86582]
[1751188353315,7.44867271,2442.1,2442.0,2.86582]
[1751188362621,7.44867271,2442.1,2442.0,0.81872]
[1751188362826,7.44867271,2442.1,2442.0,2.86582]
[1751188369927,1.09367271,2442.1,2442.0,2.86582]
[1751188370128,1.09367271,2442.1,2442.0,4.9318694]
[1751188382547,1.09367271,2442.1,2442.0,6.4012694]
[1751188388945,6.345,2442.5,2442.4,0.81859]
[1751188389148,7.42555378,2442.5,2442.4,2.8846394]
[1751188390337,1.08055378,2442.5,2442.4,2.86569]
[1751188390752,1.08055378,2442.5,2442.4,3.55979]
[1751188391146,1.08055378,2442.5,2442.4,4.97259]
[1751188391352,6.345,2442.8,2442.7,0.81848]
[1751188391652,6.345,2442.8,2442.7,2.8845294]
[1751188391653,7.42424246,2442.8,2442.7,2.8845294]
[1751188394047,1.07924246,2442.8,2442.7,4.9316294]
[1751188399461,1.07924246,2442.8,2442.7,45.7316294]
[1751188403562,1.07924246,2442.8,2442.7,43.66558]
[1751188404359,1.07924246,2442.8,2442.7,44.33758]
[1751188409261,2.1639,2443.0,2442.9,0.81842]
[1751188409562,2.53332807,2443.0,2442.9,0.81842]
[1751188410368,1.07522807,2443.0,2442.9,0.81842]
[1751188410566,1.07522807,2443.0,2442.9,2.86552]
[1751188413364,1.07522807,2443.0,2442.9,3.53552]
[1751188413765,1.07522807,2443.0,2442.9,29.74332]
[1751188414866,1.07522807,2443.0,2442.9,3.53552]
[1751188415067,1.07522807,2443.0,2442.9,28.29952]
[1751188419968,1.07522807,2443.0,2442.9,29.62512]
[1751188422473,1.07522807,2443.0,2442.9,31.6911694]
[1751188422677,1.07522807,2443.0,2442.9,29.6440694]
[1751188422873,1.07522807,2443.0,2442.9,29.62512]
[1751188423179,1.07522807,2443.0,2442.9,31.6911694]
[1751188423579,9.5408,2443.5,2443.4,0.81825]
[1751188423775,10.61714207,2443.5,2443.4,2.8842994]
[1751188423967,4.28414207,2443.5,2443.4,4.9313994]
[1751188424568,4.28414207,2443.5,2443.4,2.86535]
[1751188424773,1.07634207,2443.5,2443.4,5.81282872]
[1751188425074,1.07634207,2443.5,2443.4,30.56982872]
[1751188425278,1.07634207,2443.5,2443.4,32.03462872]
[1751188426278,1.07634207,2443.5,2443.4,5.81282872]
[1751188426478,1.07634207,2443.5,2443.4,30.56882872]
[1751188426675,1.07634207,2443.5,2443.4,71.36882872]
[1751188426876,1.07634207,2443.5,2443.4,72.81432872]
[1751188427270,3.2078,2443.9,2443.8,0.81812]
[1751188427475,3.2078,2443.9,2443.8,8.20237872]
[1751188427476,1.07491566,2443.9,2443.8,8.20237872]
[1751188427868,1.07491566,2443.9,2443.8,9.71949872]
[1751188428681,1.07491566,2443.9,2443.8,10.45319872]
[1751188429279,1.07491566,2443.9,2443.8,51.25319872]
[1751188430281,5.2535,2444.2,2444.1,0.81802]
[1751188430579,6.32674585,2444.2,2444.1,0.81802]
[1751188431383,9.27422457,2444.2,2444.1,0.81802]
[1751188431783,6.32674585,2444.2,2444.1,0.81802]
[1751188433483,7.14472585,2444.2,2444.0,0.81803]
[1751188433780,2.44814585,2444.1,2444.0,2.86513]
[1751188433978,2.44814585,2444.1,2444.0,0.81803]
[1751188435084,2.44814585,2444.1,2444.0,0.81805]
[1751188436485,3.26616585,2444.1,2444.0,0.81805]
[1751188436686,2.44814585,2444.1,2444.0,0.81805]
[1751188437387,3.26616585,2444.1,2444.0,0.81805]
[1751188438185,0.81806,2444.0,2443.9,0.81806]
[1751188438384,2.94747872,2443.9,2443.8,0.81811]
[1751188438687,6.97335872,2443.9,2443.8,0.81811]
[1751188438886,8.31655872,2443.9,2443.8,0.81811]
[1751188439188,8.31657872,2443.9,2443.7,0.81813]
[1751188439383,2.16132,2443.8,2443.7,0.81813]
[1751188439582,2.16134,2443.8,2443.7,0.81815]
[1751188439989,0.81815,2443.7,2443.6,0.81816]
[1751188440190,3.51815,2443.7,2443.6,0.81816]
[1751188440591,2.7,2443.7,2443.6,0.81816]
[1751188440885,0.81818,2443.6,2443.5,40.8]
[1751188441091,2.16138,2443.6,2443.5,40.8]
[1751188441299,2.16138,2443.6,2443.5,41.61822]
[1751188441591,2.16138,2443.6,2443.4,0.81823]
[1751188441790,1.3242,2443.5,2443.4,2.86533]
[1751188441992,1.3242,2443.5,2443.4,43.66533]
[1751188442591,2.14242,2443.5,2443.4,40.8]
[1751188442781,0.81825,2443.4,2443.3,3.2078]
[1751188442986,2.83005,2443.4,2443.3,3.2078]
[1751188444793,2.83005,2443.4,2443.2,0.81829]
[1751188444794,0.81828,2443.3,2443.2,0.81829]
[1751188444994,2.18308,2443.3,2443.2,0.81829]
[1751188445383,1.3648,2443.3,2443.2,0.81829]
[1751188445790,2.18308,2443.3,2443.2,0.81829]
[1751188446787,1.3648,2443.3,2443.2,0.81829]
[1751188448488,1.3648,2443.3,2443.1,0.81833]
[1751188448689,1.3648,2443.3,2443.2,2.86542]
[1751188449188,1.3648,2443.3,2443.2,0.81832]
[1751188451494,9.5318,2443.5,2443.4,0.81825]
[1751188451685,10.6025036,2443.5,2443.4,0.81825]
[1751188457301,10.6025036,2443.5,2443.4,2.86535]
[1751188460605,10.6025036,2443.5,2443.4,4.18925]
[1751188462208,4.2785036,2443.5,2443.4,4.18925]
[1751188464110,1.0707036,2443.5,2443.4,4.18925]
[1751188467916,1.0707036,2443.5,2443.4,28.93025]
[1751188468115,12.66509523,2444.1,2444.0,0.81805]
[1751188468423,13.73739398,2444.1,2444.0,0.81805]
[1751188468723,10.60009875,2444.1,2444.0,0.81805]
[1751188471715,10.60009875,2444.1,2444.0,2.86515]
[1751188478022,1.07229875,2444.1,2444.0,2.86515]
[1751188478819,1.07229875,2444.1,2444.0,4.26805]
[1751188479821,1.07229875,2444.1,2444.0,2.86515]
[1751188497533,1.07229875,2444.1,2444.0,43.66515]
[1751188500644,1.07229875,2444.1,2444.0,45.10435]
[1751188504536,3.2078,2444.5,2444.4,0.81792]
[1751188504830,4.27282473,2444.5,2444.4,0.81792]
[1751188506339,1.06502473,2444.5,2444.4,3.76539872]
[1751188506739,1.06502473,2444.5,2444.4,0.81792]
[1751188508145,1.06502473,2444.5,2444.3,0.81792]
[1751188508444,3.76132473,2444.4,2444.3,2.86502]
[1751188508645,6.70880345,2444.4,2444.2,3.2078]
[1751188508838,3.20559473,2444.3,2444.1,0.81801]
[1751188509039,5.33510345,2444.2,2444.1,0.81801]
[1751188510244,6.15308345,2444.2,2444.1,0.81801]
[1751188510442,5.33510345,2444.2,2444.1,0.81801]
[1751188510745,6.15308345,2444.2,2444.1,0.81801]
[1751188511140,5.33510345,2444.2,2444.1,0.81801]
[1751188511650,6.15308345,2444.2,2444.1,0.81801]
[1751188511850,5.33510345,2444.2,2444.1,0.81801]
[1751188512748,6.15308345,2444.2,2444.1,0.81801]
[1751188513349,5.33510345,2444.2,2444.1,0.81801]
[1751188514350,6.15308345,2444.2,2444.1,0.81801]
[1751188515743,0.81803,2444.1,2444.0,0.81804]
[1751188515950,3.94958509,2444.1,2444.0,0.81804]
[1751188516746,0.81805,2444.0,2443.9,3.2078]
[1751188516950,2.21625,2444.0,2443.9,0.81808]
[1751188517153,2.91295,2444.0,2443.9,0.81808]
[1751188517840,5.86042872,2444.0,2443.9,0.81808]
[1751188518446,6.92399862,2444.0,2443.9,0.81808]
[1751188520658,0.81809,2443.9,2443.8,0.8181]
[1751188520952,2.26319,2443.9,2443.8,0.8181]
[1751188521552,1.4451,2443.9,2443.8,0.8181]
[1751188522452,2.26318,2443.9,2443.8,0.8181]
[1751188522855,1.4451,2443.9,2443.8,0.8181]
[1751188524654,2.26318,2443.9,2443.8,0.8181]
[1751188524856,2.50877676,2443.9,2443.8,0.8181]
[1751188525962,3.32685676,2443.9,2443.7,0.81812]
[1751188526252,2.0892,2443.8,2443.7,0.81815]
[1751188526457,3.15285275,2443.8,2443.7,0.81815]
[1751188526857,6.10033147,2443.8,2443.7,0.81815]
[1751188529861,3.15285275,2443.8,2443.7,0.81815]
[1751188532663,9.46285275,2443.8,2443.7,0.81815]
[1751188532859,9.46285275,2443.8,2443.5,40.8]
[1751188533060,1.06365275,2443.7,2443.6,0.81817]
[1751188533362,4.01113147,2443.7,2443.5,0.8182]
[1751188533562,1.05832132,2443.6,2443.5,0.8182]
[1751188534461,5.13593872,2443.7,2443.6,0.81818]
[1751188534658,6.19408888,2443.7,2443.6,0.81818]
[1751188535363,6.19408888,2443.7,2443.5,0.81819]
[1751188535563,1.05815016,2443.6,2443.5,2.86532]
[1751188535763,1.05815016,2443.6,2443.5,0.81822]
[1751188540668,1.87633016,2443.6,2443.5,0.81822]
[1751188540868,1.05815016,2443.6,2443.5,0.81822]
[1751188541669,1.87633016,2443.6,2443.5,0.81822]
[1751188544380,1.05815016,2443.6,2443.5,0.81822]
[1751188544676,1.87633016,2443.6,2443.5,0.81822]
[1751188544878,1.05815016,2443.6,2443.5,0.81822]
[1751188545273,1.87633016,2443.6,2443.5,0.81822]
[1751188546572,1.05815016,2443.6,2443.5,0.81822]
[1751188550376,1.05815016,2443.6,2443.5,2.16942]
[1751188553876,1.05815016,2443.6,2443.5,4.21652]
[1751188557474,1.05815016,2443.6,2443.5,74.73452]
[1751188558378,1.05815016,2443.6,2443.5,69.73452]
[1751188558581,1.05815016,2443.6,2443.5,72.68075487]
[1751188559975,1.05815016,2443.6,2443.5,75.88855487]
[1751188560175,6.306,2443.9,2443.8,0.81812]
[1751188560378,6.306,2443.9,2443.8,5.81145487]
[1751188560379,7.36103026,2443.9,2443.8,5.81145487]
[1751188560978,7.36103026,2443.9,2443.8,6.51865487]
[1751188564581,1.05503026,2443.9,2443.8,7.95725487]
[1751188567181,1.05503026,2443.9,2443.8,35.87705487]
[1751188567380,6.305,2444.6,2444.0,2.04506]
[1751188567589,6.305,2444.6,2444.5,0.81788]
[1751188567891,7.35863166,2444.6,2444.5,41.61788]
[1751188569582,7.35863166,2444.6,2444.5,43.66498]
[1751188572372,1.05363166,2444.6,2444.5,43.66498]
[1751188572578,1.05363166,2444.6,2444.5,46.61121487]
[1751188573194,1.05363166,2444.6,2444.5,43.66498]
[1751188574287,9.5118,2444.7,2444.6,0.81785]
[1751188574484,10.56210288,2444.7,2444.6,2.86495]
[1751188575588,4.25810288,2444.7,2444.6,2.86495]
[1751188576190,1.05030288,2444.7,2444.6,2.86495]
[1751188577087,6.304,2444.8,2444.7,0.81781]
[1751188577386,7.3538113,2444.8,2444.7,2.86491]
[1751188578677,6.304,2444.8,2444.7,3.54761]
[1751188582391,1.48299,2445.1,2444.9,0.81775]
[1751188582593,7.35233786,2445.0,2444.9,0.81775]
[1751188583089,6.303,2445.0,2444.9,0.81775]
[1751188583294,6.303,2445.0,2444.9,2.86485]
[1751188583488,7.35235798,2445.0,2444.9,2.86485]
[1751188583683,1.04935798,2445.0,2444.9,2.86485]
[1751188584192,7.6629,2445.2,2444.9,2.0471]
[1751188584391,1.04896239,2445.1,2445.0,2.0471]
[1751188585091,1.04896239,2445.1,2445.0,2.86478]
[1751188585292,4.25676239,2445.1,2445.0,2.86478]
[1751188589194,4.25676239,2445.1,2445.0,2.86481]
[1751188589799,9.43677726,2445.1,2445.0,2.0471]
[1751188590301,8.61909726,2445.1,2445.0,2.86481]
[1751188590502,9.43677726,2445.1,2445.0,2.86481]
[1751188590999,9.43677726,2445.1,2445.0,0.81771]
[1751188591389,8.61909726,2445.1,2445.0,0.81771]
[1751188592701,5.67286239,2445.1,2445.0,0.81771]
[1751188593602,5.67286239,2445.1,2445.0,2.86481]
[1751188596904,6.49054239,2445.1,2445.0,2.86481]
[1751188597104,6.49054239,2445.1,2445.0,0.81771]
[1751188597305,7.89844239,2445.1,2445.0,0.81771]
[1751188597507,7.08076239,2445.1,2445.0,0.81771]
[1751188597906,10.02699726,2445.1,2445.0,0.81771]
[1751188598505,10.84467726,2445.1,2445.0,0.81771]
[1751188599009,8.97803487,2445.1,2445.0,0.81771]
[1751188599199,10.0285626,2445.1,2445.0,0.81771]
[1751188600714,7.08232773,2445.1,2445.0,0.81771]
[1751188601620,6.39492773,2445.1,2445.0,0.81771]
[1751188602812,7.21260773,2445.1,2445.0,0.81771]
[1751188603221,1.05052773,2445.1,2445.0,5.81104487]
[1751188603420,1.05052773,2445.1,2445.0,2.86481]
[1751188607524,4.25832773,2445.1,2445.0,2.86481]
[1751188608825,5.64142773,2445.1,2445.0,2.86481]
[1751188609328,6.45910773,2445.1,2445.0,2.86481]
[1751188610625,9.4053426,2445.1,2445.0,0.81771]
[1751188610817,8.5876626,2445.1,2445.0,0.81771]
[1751188611019,9.4053426,2445.1,2445.0,0.81771]
[1751188613130,9.40740542,2445.1,2445.0,0.81771]
[1751188614429,8.58972542,2445.1,2445.0,0.81771]
[1751188614933,9.40740542,2445.1,2445.0,0.81771]
[1751188616534,6.19960542,2445.1,2445.0,0.81771]
[1751188618736,5.31440844,2445.1,2445.0,0.81771]
[1751188619734,3.11362844,2445.1,2445.0,0.81771]
[1751188620530,1.05259055,2445.1,2445.0,0.81771]
[1751188624723,1.05259055,2445.1,2445.0,1.47931]
[1751188625935,1.05259055,2445.1,2445.0,3.52641]
[1751188632639,1.05259055,2445.1,2445.0,1.47931]
[1751188632839,1.05259055,2445.1,2445.0,3.52641]
[1751188641245,1.05259055,2445.1,2445.0,4.89831]
[1751188648851,6.294,2445.4,2445.3,0.81761]
[1751188649056,1.04591849,2445.4,2445.3,2.86471]
[1751188649649,1.04591849,2445.4,2445.3,3.55771]
[1751188652457,1.04591849,2445.4,2445.3,4.98621]
[1751188654155,3.2078,2445.6,2445.5,0.81755]
[1751188654458,1.04484857,2445.6,2445.5,2.86465]
[1751188656855,1.04484857,2445.6,2445.5,43.66465]
[1751188658560,1.04484857,2445.6,2445.5,45.11805]
[1751188659760,6.289,2446.1,2446.0,0.81738]
[1751188659955,7.33279224,2446.1,2446.0,0.81738]
[1751188660256,1.04379224,2446.1,2446.0,2.86448]
[1751188660654,1.04379224,2446.1,2446.0,3.52968]
[1751188662767,10.94526349,2446.5,2446.4,0.81725]
[1751188662966,11.98818695,2446.5,2446.4,0.81725]
[1751188663165,12.80541695,2446.5,2446.3,0.81726]
[1751188663463,2.40152346,2446.4,2446.3,0.81726]
[1751188663660,3.90587346,2446.4,2446.3,0.81726]
[1751188664268,3.08862346,2446.4,2446.3,0.81726]
[1751188664966,6.29642346,2446.4,2446.3,0.81726]
[1751188667264,7.11367346,2446.4,2446.3,0.81726]
[1751188667665,6.29642346,2446.4,2446.3,0.81726]
[1751188668166,7.11367346,2446.4,2446.3,0.81726]
[1751188668567,7.11367346,2446.4,2446.0,0.6951]
[1751188668867,2.48382346,2446.3,2446.2,2.86438]
[1751188669068,3.17542346,2446.3,2446.2,2.86438]
[1751188669265,3.99270346,2446.3,2446.2,0.81728]
[1751188671073,3.99270346,2446.3,2446.2,0.81731]
[1751188671269,0.81733,2446.2,2446.1,0.81731]
[1751188671466,2.20853,2446.2,2446.1,0.81731]
[1751188672174,1.3912,2446.2,2446.1,0.81731]
[1751188672670,2.20851,2446.2,2446.1,0.81731]
[1751188672870,0.6916,2446.3,2446.2,0.81731]
[1751188673067,1.73217378,2446.3,2446.2,2.86441]
[1751188673364,1.50888,2446.3,2446.2,0.81731]
[1751188673571,3.12349623,2446.3,2446.2,0.81731]
[1751188674479,3.94077623,2446.3,2446.2,0.81731]
[1751188674678,3.12349623,2446.3,2446.2,0.81731]
[1751188678170,3.94077623,2446.3,2446.2,0.81731]
[1751188679376,3.12349623,2446.3,2446.2,0.81731]
[1751188679677,3.94077623,2446.3,2446.2,0.81731]
[1751188680275,3.12349623,2446.3,2446.2,0.81731]
[1751188680577,3.94077623,2446.3,2446.2,0.81731]
[1751188681068,3.12349623,2446.3,2446.2,0.81731]
[1751188681678,3.94077623,2446.3,2446.2,0.81731]
[1751188682478,3.12349623,2446.3,2446.2,0.81731]
[1751188685081,3.94077623,2446.3,2446.2,0.81731]
[1751188685271,3.12349623,2446.3,2446.2,0.81731]
[1751188686075,1.73229623,2446.3,2446.2,0.81731]
[1751188689281,1.04069623,2446.3,2446.2,0.81731]
[1751188691175,1.85797623,2446.3,2446.2,0.81731]
[1751188691377,1.04069623,2446.3,2446.2,0.81731]
[1751188692083,1.85798623,2446.3,2446.2,0.81731]
[1751188693778,3.26488623,2446.3,2446.2,0.81731]
[1751188694583,2.44759623,2446.3,2446.2,0.81731]
[1751188695588,3.26487623,2446.3,2446.2,0.81731]
[1751188696289,6.47267623,2446.3,2446.2,0.81731]
[1751188700694,5.06577623,2446.3,2446.2,0.81731]
[1751188702597,4.24849623,2446.3,2446.2,0.81731]
[1751188703495,5.06577623,2446.3,2446.2,0.71731]
[1751188703794,5.06577623,2446.3,2446.2,2.76441]
[1751188703987,4.24849623,2446.3,2446.2,2.76441]
[1751188705805,4.24849623,2446.3,2446.2,3.48741]
[1751188707306,4.24849623,2446.3,2446.2,4.85041]
[1751188708892,1.04069623,2446.3,2446.2,8.05821]
[1751188709602,1.04069623,2446.3,2446.2,13.05821]
[1751188710498,1.04069623,2446.3,2446.2,8.05821]
[1751188712709,0.08346349,2446.5,2446.4,0.81725]
[1751188712906,1.12140775,2446.5,2446.4,2.86435]
[1751188713207,1.12140775,2446.5,2446.4,3.55765]
[1751188714502,1.12140775,2446.5,2446.4,8.55765]
[1751188714902,1.12140775,2446.5,2446.4,49.35765]
[1751188715907,0.08346349,2446.5,2446.4,55.63965]
[1751188716109,0.08346349,2446.5,2446.4,57.01425]
[1751188716412,0.08346349,2446.5,2446.4,52.01325]
[1751188720111,0.08346349,2446.5,2446.4,57.01325]
[1751188722605,0.08346349,2446.5,2446.4,50.73225]
[1751188722804,3.2078,2447.2,2447.1,0.81701]
[1751188723107,4.24009706,2447.2,2447.1,0.81701]
[1751188723306,4.24009706,2447.2,2447.1,2.86411]
[1751188723614,3.96476349,2447.8,2447.7,0.81681]
[1751188723815,4.99667295,2447.8,2447.7,0.81681]
[1751188724113,12.19727295,2447.8,2447.6,0.81682]
[1751188724312,2.41570946,2447.7,2447.6,0.81682]
[1751188725108,8.69570946,2447.7,2447.6,0.81682]
[1751188725309,2.41570946,2447.7,2447.3,40.8]
[1751188725515,1.03190946,2447.6,2447.5,0.81688]
[1751188726014,1.03190946,2447.6,2447.5,41.61688]
[1751188726216,2.41350946,2447.6,2447.5,41.61688]
[1751188727512,14.51035946,2447.6,2447.5,40.8]
[1751188727717,0.81688,2447.5,2447.4,0.81689]
[1751188728010,7.82458946,2447.5,2447.4,0.81689]
[1751188728518,0.81695,2447.4,2447.3,0.81694]
[1751188728818,3.20711946,2447.4,2447.3,0.81694]
[1751188729221,2.39020946,2447.4,2447.3,0.81694]
[1751188730414,1.3583,2447.4,2447.3,0.81694]
[1751188737629,1.3583,2447.4,2447.3,0.81695]
[1751188742233,2.38814079,2447.4,2447.3,0.81695]
[1751188748641,1.02984079,2447.4,2447.3,0.81695]
[1751188750527,1.02984079,2447.4,2447.3,2.86405]
[1751188752027,1.02984079,2447.4,2447.3,3.55185]
[1751188752643,1.02984079,2447.4,2447.3,1.50475]
[1751188752942,1.02984079,2447.4,2447.3,3.55185]
[1751188758143,1.02984079,2447.4,2447.3,1.50475]
[1751188766752,1.02984079,2447.4,2447.3,3.55185]
[1751188775256,3.2078,2447.6,2447.5,0.81688]
[1751188775455,4.23900693,2447.6,2447.5,2.86398]
[1751188776969,1.03120693,2447.6,2447.5,2.86398]
[1751188780655,1.03120693,2447.6,2447.3,3.8956]
[1751188780853,5.05501011,2447.5,2447.3,0.6878]
[1751188781051,1.03033011,2447.4,2447.3,1.50473]
[1751188782856,1.03033011,2447.4,2447.3,3.55183]
[1751188784562,1.03033011,2447.4,2447.3,1.50473]
[1751188784762,1.03033011,2447.4,2447.3,0.81693]
[1751188785061,2.39223011,2447.4,2447.3,0.81693]
[1751188785256,3.20914011,2447.4,2447.3,0.81693]
[1751188785456,3.20914011,2447.4,2447.2,0.81696]
[1751188785654,1.03033011,2447.3,2447.2,2.86406]
[1751188785853,0.81698,2447.2,2447.1,0.7258]
[1751188786059,1.84731011,2447.2,2447.0,0.81703]
[1751188786262,7.79298,2447.2,2447.0,2.86413]
[1751188786463,1.03054459,2447.1,2447.0,2.86413]
[1751188786963,1.84755459,2447.1,2447.0,0.81703]
[1751188788170,1.03054459,2447.1,2447.0,0.81703]
[1751188790373,7.31054459,2447.1,2447.0,0.81703]
[1751188790988,8.12755459,2447.1,2447.0,0.81703]
[1751188791178,8.12755459,2447.1,2446.9,45.55065]
[1751188791482,0.81705,2447.0,2446.9,4.75065]
[1751188791688,0.81709,2446.9,2446.6,3.871]
[1751188791880,2.22408,2447.0,2446.8,0.81711]
[1751188792182,0.81708,2446.9,2446.7,0.81712]
[1751188793377,0.81711,2446.8,2446.6,3.871]
[1751188793585,0.6685,2446.9,2446.8,0.81711]
[1751188793781,1.69850988,2446.9,2446.8,0.81711]
[1751188795385,1.03000988,2446.9,2446.8,0.81711]
[1751188796087,1.03000988,2446.9,2446.8,2.86421]
[1751188796586,6.281,2446.9,2446.8,2.86421]
[1751188798991,3.2078,2447.2,2446.8,2.0471]
[1751188799190,3.2078,2447.2,2446.7,2.04285]
[1751188799191,7.30784603,2447.1,2447.0,0.81705]
[1751188800291,1.02684603,2447.1,2447.0,0.81705]
[1751188800791,7.31084603,2447.1,2447.0,0.81705]
[1751188803094,7.31084603,2447.1,2447.0,2.86415]
[1751188803288,1.02684603,2447.1,2447.0,2.86415]
[1751188803595,7.31084603,2447.1,2447.0,2.86415]
[1751188803790,1.02684603,2447.1,2447.0,2.86415]
[1751188803994,7.31084603,2447.1,2447.0,2.86415]
[1751188807395,6.284,2447.1,2447.0,2.86415]
[1751188807594,7.31052002,2447.1,2447.0,43.66415]
[1751188808196,6.284,2447.1,2447.0,43.66415]
[1751188808495,7.31070917,2447.1,2447.0,43.66415]
[1751188808696,7.31070917,2447.1,2447.0,2.0471]
[1751188808697,8.12771917,2447.1,2447.0,2.0471]
[1751188809093,9.55191917,2447.1,2447.0,2.86415]
[1751188809497,9.55191917,2447.1,2446.6,3.2078]
[1751188809702,0.81709,2446.9,2446.8,2.86419]
[1751188809993,0.81711,2446.8,2446.7,0.81712]
[1751188810200,8.52531,2446.8,2446.7,0.81712]
[1751188810399,0.81717,2446.7,2446.6,0.81716]